[Event "Silver Lake Festival 2022"]
[Site "Veliko Gradiste"]
[Date "2022.06.21"]
[Round "4.12"]
[White "Furman, Boris"]
[Black "Govedarica, Radovan"]
[Result "0-1"]
[ECO "D36"]
[WhiteElo "2121"]
[BlackElo "2289"]
[Annotator "TA"]
[PlyCount "80"]
[EventDate "2022.06.16"]
[EventType "swiss"]
[EventCountry "SRB"]
[SourceTitle "playchess.com"]
[Source "ChessBase"]
[SourceQuality "1"]
[TimeControl "5400+30"]

{[%evp 16,80,25,22,20,20,18,16,14,25,25,20,20,18,17,16,20,19,16,19,19,22,8,10,25,12,28,16,31,24,26,19,23,21,41,-8,-13,-15,-11,-19,-3,-10,0,0,-5,-32,0,0,0,-81,-83,-69,-80,-215,-200,-224,-224,-225,-225,-237,-209,-422,-422,-1812,-1812,-1241,-1202]} 1. d4 {[%emt 0:00:04]} Nf6 {[%emt 0:00:08]} 2. c4 {[%emt 0:00:08]} e6 {[%emt 0:00:02]} 3. Nc3 {[%emt 0:00:14]} d5 {[%emt 0:00:09]} 4. cxd5 {[%emt 0:00:27]} exd5 5. Bg5 {[%emt 1:32:07]} c6 {[%emt 0:00:48]} 6. e3 {[%emt 0:00:00]} h6 {[%emt 0:00:32]} 7. Bh4 {[%emt 0:00:00]} Be7 {[%emt 0:00:02]} 8. Bd3 {[%emt 0:00:00]} O-O {[%emt 0:02:05]} 9. Qc2 {[%emt 0:00:00] 9.Nge2 is the modern continuation.} Nh5 {[%emt 0:00:35] D36: Queen's Gambit Declined: Exchange Variation: Main line (5 Bg5 c6 6 Qc2).} 10. Bxe7 {[%emt 0:00:00]} Qxe7 {[%emt 0:00:02]} 11. Nge2 {[%emt 0:00:00]} Re8 {[%emt 0:01:44] The position is equal.} 12. O-O {[%emt 0:00:00]} Bg4 {[%emt 0:00:20]} 13. h3 {[%emt 0:00:00]} Bxe2 {[%emt 0:00:02] [#]} 14. Qxe2 $146 {[%emt 0:00:00]} ({Predecessor:} 14. Nxe2 Nf6 15. Rfc1 a6 16. Qb3 g6 17. Nf4 Kg7 18. Rc3 Rc8 19. Qc2 Nbd7 20. Bxg6 fxg6 21. Qxg6+ {½-½ (35) Bester,A (1946)-Santoso,L (2275) ICCF email 2020}) 14... Nf6 {[%emt 0:00:03]} 15. Rab1 {[%emt 0:00:00]} a5 {[%emt 0:00:39]} 16. a3 {[%emt 0:00:00]} Nbd7 {[%emt 0:05:48]} 17. Rfe1 {[%emt 0:00:00]} Qd6 {[%emt 0:01:32]} 18. f3 {[%emt 0:00:00]} b5 {[%emt 0:03:05]} 19. Qf2 {[%emt 0:00:00]} b4 {[%emt 0:01:45]} 20. axb4 {[%emt 0:00:00]} axb4 {[%emt 0:00:03]} 21. Ne2 {[%emt 0:00:00]} c5 {[%emt 0:00:00]} 22. dxc5 {[%emt 0:00:00]} Nxc5 {[%emt 0:08:08]} 23. Bb5 {[%emt 0:00:00]} Reb8 {[%emt 0:09:12]} 24. Nd4 {[%emt 0:00:00]} Ne6 {[%emt 0:00:02]} 25. Bf1 {[%emt 0:00:00]} (25. Nf5 $14 Qd8 26. Bd3) 25... Nxd4 $11 {[%emt 0:11:52]} 26. exd4 {[%emt 0:00:00]} b3 {[%emt 0:00:02]} 27. Rbc1 {[%emt 0:00:00]} Ra4 {[%emt 0:02:40]} 28. Qd2 {[%emt 0:00:00]} Kh7 {[%emt 0:10:41]} 29. Rc3 {[%emt 0:00:00]} g6 {[%emt 0:01:52]} 30. Qd3 {[%emt 0:00:00]} Qb6 {[%emt 0:01:23]} 31. Re7 {[%emt 0:00:00]} Ra7 {[%emt 0:07:42]} 32. Rxb3 {[%emt 0:00:00]} Rxe7 $17 {[%emt 0:00:15]} 33. Rxb6 {[%emt 0:14:00]} Rxb6 {[%emt 0:33:47]} 34. Qd2 {[%emt 0:00:00] [#] This costs White the game.} (34. Qa3 $17 Reb7 35. Qf8) 34... Reb7 $1 $19 {[%emt 0:00:00]} 35. Qf4 {[%emt 0:00:00][%cal Ob2b4]} Kg7 {[%emt 0:00:00]} 36. h4 {[%emt 0:00:00]} Rxb2 {[%emt 0:00:00] Strongly threatening ...Rb1.} 37. g4 {[%emt 0:00:00]} Re7 {[%emt 0:00:00] Against Qe5. Threatens to win with ...Re1.} 38. g5 $2 {[%emt 0:00:00] [#]} (38. Qc1 Rb3 39. Kf2) 38... hxg5 {[%emt 0:00:00] Active counter play! Black is clearly winning.} 39. Qxg5 {[%emt 0:00:00]} (39. hxg5 $142 Nh5 40. Qc1) 39... Re1 {[%emt 0:00:00]} 40. h5 {[%emt 0:00:00]} Nxh5 {[%emt 0:00:00] Weighted Error Value: White=0.46/Black=0.04 (flawless)} 0-1

[Event "Silver Lake Festival 2022"]
[Site "Veliko Gradiste"]
[Date "2022.06.22"]
[Round "5.1"]
[White "Strikovic, Aleksa"]
[Black "Stremavicius, Titas"]
[Result "0-1"]
[ECO "D32"]
[WhiteElo "2502"]
[BlackElo "2508"]
[Annotator "TA"]
[PlyCount "66"]
[EventDate "2022.06.16"]
[EventType "swiss"]
[EventCountry "SRB"]
[SourceTitle "playchess.com"]
[Source "ChessBase"]
[SourceQuality "1"]
[TimeControl "5400+30"]

{[%evp 19,66,27,23,0,0,0,0,0,0,0,0,0,0,0,0,-1,6,8,0,-43,-19,-23,0,0,0,0,0,0,0,-12,-18,-22,-18,-106,0,0,0,0,0,-84,-84,-364,-358,-297,-99,-6923,-12847,-4998,-1103]} 1. c4 {[%emt 0:05:18]} e6 {[%emt 0:00:05]} 2. Nf3 {[%emt 0:00:15]} d5 {[%emt 0:00:10]} 3. e3 {[%emt 0:00:19]} Nf6 {[%emt 0:01:13]} 4. Nc3 {[%emt 0:02:32]} Be7 {[%emt 0:05:38]} 5. b3 {[%emt 0:00:09]} O-O {[%emt 0:00:49]} 6. Bb2 {[%emt 0:00:04]} c5 {[%emt 0:06:54]} 7. cxd5 {[%emt 0:03:27]} exd5 {[%emt 0:00:02]} 8. d4 {[%emt 0:00:08]} Nc6 {[%emt 0:00:04]} 9. Be2 {[%emt 0:00:05]} Ne4 {[%emt 0:00:04]} 10. O-O {[%emt 0:06:21]} Bf6 {[%emt 0:00:21]} 11. Na4 {[%emt 0:04:06] D32: Tarrasch Defence: Sidelines and lines without g3.} Bg4 {[%emt 0:00:18]} 12. Rc1 {[%emt 0:03:08]} cxd4 $1 {[%emt 0:02:33]} 13. Nxd4 {[%emt 0:01:20] The position is equal.} Bxd4 {[%emt 0:01:27]} 14. Bxg4 {[%emt 0:03:15]} Bxb2 {[%emt 0:02:08]} 15. Nxb2 {[%emt 0:00:05]} Qa5 {[%emt 0:00:39]} 16. Na4 {[%emt 0:03:24]} Rad8 {[%emt 0:00:17] [#]} 17. Qc2 $146 {[%emt 0:43:29]} ({Predecessor:} 17. Bf3 Nd2 18. Re1 Ne5 19. Be2 b6 20. a3 b5 21. Nc5 Ne4 22. Nb7 Qxa3 23. Nxd8 Rxd8 {1-0 (38) Obolenskikh,D (2544)-Grachev,B (2612) Chess.com INT 2020}) 17... f5 {[%emt 0:29:30]} 18. Be2 {[%emt 0:04:03]} d4 {[%emt 0:01:00]} 19. Rfd1 {[%emt 0:00:04]} dxe3 {[%emt 0:07:42]} 20. fxe3 {[%emt 0:00:06]} Nb4 {[%emt 0:01:45] Pair of Knights!} 21. Qc4+ {[%emt 0:12:11]} Kh8 {[%emt 0:00:02]} 22. Rxd8 {[%emt 0:01:14]} Rxd8 {[%emt 0:00:06]} 23. Qc7 $1 {[%emt 0:00:04]} Qd5 {[%emt 0:12:33]} 24. Nc3 {[%emt 0:05:08]} Nxc3 {[%emt 0:00:40]} 25. Rxc3 {[%emt 0:00:07]} Qd2 {[%emt 0:00:17] ...Nc6 is the strong threat.} 26. Kf2 {[%emt 0:02:30] [#]} (26. Kf1 $1 $11) 26... Nc6 {[%emt 0:14:07] Black is more active.} (26... Nxa2 $2 27. Rc2 Qd5 28. Rxa2 $18) ({Black should try} 26... Nd3+ $1 $17 27. Kf3 Ne1+ 28. Kf2 f4) 27. Rc5 $1 $11 {[%emt 0:00:23]} Re8 {[%emt 0:00:17]} 28. Qf4 {[%emt 0:00:02]} g6 {[%emt 0:01:57]} 29. a3 {[%emt 0:00:37] [#]} (29. g4 $11 {keeps the balance.}) 29... Kg7 $1 $36 {[%emt 0:03:13][%mdl 2048] Threatens to win with ...Re4. Keeping White busy.} 30. b4 $2 {[%emt 0:00:12][%mdl 8192]} (30. Rc4 $17 {is a better defense.}) 30... Re4 $19 {[%emt 0:00:17] The board is on fire.} 31. Qf3 {[%emt 0:00:49]} Ne5 $2 {[%emt 0:00:26]} (31... Kf6 $19 {has better winning chances. White must now prevent ...Ne5.} 32. Qg3 Ne5 33. Rxe5 Rxe5 34. Qh4+ Kg7) 32. Rc7+ $2 {[%emt 0:00:42][%mdl 8192]} (32. Qxe4 $17 fxe4 33. Rxe5) 32... Kf6 {[%emt 0:00:22]} 33. Qg3 {[%emt 0:00:24]} Rg4 {[%emt 0:01:11] Weighted Error Value: White=0.71/Black=0.15 (very precise)} (33... Ng4+ $142 34. Kg1 Rxe3) 0-1

[Event "Silver Lake Festival 2022"]
[Site "Veliko Gradiste"]
[Date "2022.06.22"]
[Round "5.2"]
[White "Sadikhov, Ulvi"]
[Black "Zanan, Evgeny"]
[Result "1-0"]
[ECO "A29"]
[WhiteElo "2491"]
[BlackElo "2534"]
[Annotator "TA"]
[PlyCount "93"]
[EventDate "2022.06.16"]
[EventType "swiss"]
[EventCountry "SRB"]
[SourceTitle "playchess.com"]
[Source "ChessBase"]
[SourceQuality "1"]
[TimeControl "5400+30"]

{[%evp 19,93,0,10,6,11,20,0,0,42,0,0,7,0,10,10,0,106,102,96,86,103,96,67,88,87,38,35,33,167,0,0,-4,187,172,374,375,334,335,322,316,450,442,489,456,486,478,468,479,466,473,491,479,478,456,509,500,550,542,550,543,510,540,533,506,639,631,669,662,1258,1258,2490,2524,2065,1903,1333,1243]} 1. c4 {[%emt 0:00:03]} e5 {[%emt 0:05:20]} 2. Nc3 {[%emt 0:00:11]} Nf6 {[%emt 0:00:16]} 3. Nf3 {[%emt 0:00:19]} Nc6 {[%emt 0:00:14]} 4. g3 {[%emt 0:01:14]} d5 {[%emt 0:01:35]} 5. cxd5 {[%emt 0:00:18]} Nxd5 {[%emt 0:00:04]} 6. Bg2 {[%emt 0:00:12]} Nb6 {[%emt 0:00:13]} 7. O-O {[%emt 0:00:21]} Be7 {[%emt 0:00:05]} 8. b3 {[%emt 0:00:06]} O-O {[%emt 0:00:46]} 9. Bb2 {[%emt 0:00:04]} Re8 {[%emt 0:00:13]} 10. Rc1 {[%emt 0:00:08]} Bf8 {[%emt 0:00:18]} 11. Ne4 $1 {[%emt 0:00:14][%cal Oc1c6][%mdl 4] outshines the older 11.d3. A29: English Opening: Four Knights Variation with 4 g3.} f5 {[%emt 0:00:21]} 12. Nc3 {[%emt 0:00:05]} e4 {[%emt 0:06:54]} 13. Ne1 {[%emt 0:00:06] [#] The position is equal.} Ne5 $146 {[%emt 0:07:26]} ({Predecessor:} 13... Nb4 14. a3 Nc6 15. d3 Be6 16. b4 exd3 17. Nxd3 Nd4 18. Nf4 Bb3 19. Qd3 Nxe2+ 20. Ncxe2 Qxd3 21. Nxd3 Rxe2 22. Bxb7 {1-0 (68) Van Leent,D (1641)-Pech,J (1827) LSS email 2017}) 14. f3 {[%emt 0:10:16]} exf3 {[%emt 0:04:55]} 15. Nxf3 {[%emt 0:00:26]} Nxf3+ {[%emt 0:01:47]} 16. Rxf3 {[%emt 0:06:49][%cal Oe2e4]} c6 {[%emt 0:03:43]} 17. Qc2 {[%emt 0:04:43]} Nd5 {[%emt 0:18:19]} (17... g6 $11) 18. Nxd5 $16 {[%emt 0:19:39]} Qxd5 {[%emt 0:06:27]} 19. g4 {[%emt 0:01:48][%cal Rg4f5]} Qe4 {[%emt 0:10:58]} (19... Rxe2 $2 20. Rf2 Re4 21. h3 $18 (21. Bxe4 fxe4 22. Qc3 Qg5 $16)) 20. Qc3 {[%emt 0:10:17]} (20. Qxe4 $6 fxe4 21. Rf4 Bd6 22. Rxe4 Rxe4 23. Bxe4 Bxg4 $11) 20... f4 {[%emt 0:08:10] Inhibits Re3.} 21. Rcf1 $1 $36 {[%emt 0:14:08][%mdl 2048] White is on the roll.} Bxg4 {[%emt 0:18:41] [#]} 22. Rg3 {[%emt 0:03:41]} Qf5 $14 {[%emt 0:00:08] White must now prevent ...Qc5+.} (22... Qxe2 $2 23. Rxf4 Qe7 24. Rfxg4 $18) 23. Qc4+ {[%emt 0:02:50]} Kh8 {[%emt 0:00:13]} (23... Re6 $1 $14 24. Rxf4 Qb1+ 25. Rf1 Qxb2) 24. Rxf4 $2 {[%emt 0:01:07]} (24. Qxf4 $18 Qxf4 25. Rxf4) 24... Qb1+ $11 {[%emt 0:00:05]} 25. Bc1 {[%emt 0:00:43] Dancing on a razor blade.} b5 $2 {[%emt 0:02:35] Black is on the road to losing.} (25... Bxe2 26. Qc3 Re7 27. Be4 Qxe4 28. Rxe4 Rxe4 29. Ba3 $1 $16) (25... Bh5 $1 $11 {and Black stays safe.} 26. Qc3 Bg6) 26. Qc3 $18 {[%emt 0:02:26]} (26. Qxc6 $2 Rac8 27. Re3 Red8 $1 $19) 26... b4 $2 {[%emt 0:01:41]} (26... h5) 27. Qb2 {[%emt 0:00:21]} Bf5 {[%emt 0:01:55]} 28. Qxb1 {[%emt 0:04:47]} (28. Bxc6 Rac8 29. Qxb1 Bxb1 30. Bxe8 Rxc1+ 31. Rf1 Bc5+ 32. e3 Rxf1+ 33. Kxf1 Bxa2) 28... Bxb1 {[%emt 0:00:04]} 29. Bxc6 {[%emt 0:00:24]} Bd6 {[%emt 0:00:14] [#]} (29... Rac8 {might work better.}) 30. Bb2 $1 {[%emt 0:00:22] White is clearly winning.} Rg8 {[%emt 0:01:18] [#]} (30... Bxf4 $2 {is a self mate.} 31. Bxg7+ Kg8 32. Bd5+) (30... Bg6 31. Rxg6) 31. Rxg7 $1 {[%emt 0:01:07][%mdl 512]} Rxg7+ {[%emt 0:00:27]} 32. Bxg7+ {[%emt 0:00:05]} Kxg7 {[%emt 0:00:28]} 33. Rg4+ {[%emt 0:00:06]} Kf6 {[%emt 0:00:05][%cal Oh7h5] Strongly threatening ...h5!} 34. Bxa8 {[%emt 0:00:05]} Bxa2 {[%emt 0:00:04][%mdl 4096] Endgame KRB-KB} 35. Bd5 {[%emt 0:00:45]} a5 {[%emt 0:00:03]} 36. Bc4 {[%emt 0:00:39]} Kf5 {[%emt 0:01:49]} 37. h3 {[%emt 0:00:11]} h5 {[%emt 0:00:10]} 38. Bd3+ {[%emt 0:01:19]} Kf6 {[%emt 0:00:18]} 39. Rg6+ {[%emt 0:01:02]} Ke7 {[%emt 0:00:06]} 40. Bc2 {[%emt 0:02:21]} a4 {[%emt 0:00:06]} 41. bxa4 {[%emt 0:00:23]} b3 {[%emt 0:00:04]} 42. Bd3 {[%emt 0:00:48]} b2 {[%emt 0:01:28]} 43. Rg7+ {[%emt 0:00:12]} Bf7 {[%emt 0:00:44]} 44. Bg6 {[%emt 0:00:58]} Ke6 {[%emt 0:01:06]} 45. Rxf7 {[%emt 0:00:21] And now Rb7 would win.} ({Less strong is} 45. Bxf7+ Kf6 46. Ba2 (46. Rg6+ $2 Kxf7 47. Rxd6 b1=Q+ 48. Kg2 Qe4+ 49. Kg1 Qxe2 $19) 46... Kxg7 $18) 45... b1=Q+ {[%emt 0:00:13]} 46. Bxb1 {[%emt 0:00:04]} Kxf7 {[%emt 0:00:19]} 47. Kg2 {[%emt 0:00:04] Weighted Error Value: White=0.13 (very precise) /Black=0.44} 1-0

[Event "Silver Lake Festival 2022"]
[Site "Veliko Gradiste"]
[Date "2022.06.22"]
[Round "5.3"]
[White "Radovanovic, Nikola"]
[Black "Song, Raymond"]
[Result "0-1"]
[ECO "E00"]
[WhiteElo "2423"]
[BlackElo "2485"]
[Annotator "TA"]
[PlyCount "116"]
[EventDate "2022.06.16"]
[EventType "swiss"]
[EventCountry "SRB"]
[SourceTitle "playchess.com"]
[Source "ChessBase"]
[SourceQuality "1"]
[TimeControl "5400+30"]

{[%evp 9,116,0,9,11,15,17,30,29,48,28,26,16,20,0,0,0,0,0,0,0,17,7,68,0,0,-58,-41,-41,-56,-42,-45,-50,-53,-75,-63,-80,-28,-76,-53,-67,0,-33,-14,-21,-29,-32,-46,-171,-171,-171,-170,-277,-281,-278,-291,-261,-224,-239,-200,-370,-397,-387,-366,-326,-307,-320,-308,-427,-411,-412,-408,-369,-374,-497,-495,-462,-496,-456,-464,-475,-489,-488,-454,-528,-496,-472,-501,-562,-551,-629,-623,-990,-968,-29976,-29977,-29976,-29977,-29974,-29974,-29982,-29983,-29983,-29984,-29986,-29985,-29985,-29985,-29983,-29982]} 1. d4 {[%emt 0:00:06]} Nf6 {[%emt 0:00:06]} 2. c4 {[%emt 0:00:07]} e6 {[%emt 0:00:05]} 3. Bg5 {[%emt 0:00:10]} Bb4+ {[%emt 0:04:34]} 4. Nd2 {[%emt 0:00:27]} h6 {[%emt 0:03:28]} 5. Bh4 {[%emt 0:00:26]} d5 {[%emt 0:00:32] [#]} (5... g5 $5 6. Bg3 Ne4 $11) 6. Rc1 $146 {[%emt 0:00:46] E00: Catalan Bogo-Indian (3 g3 Bb4+).} ({Predecessor:} 6. e3 O-O 7. Ngf3 b6 8. Bd3 Bb7 9. O-O Be7 10. Rc1 Nbd7 11. Qe2 c5 12. Rfd1 cxd4 13. Nxd4 {1-0 (52) Bernasek,J (2498)-Berend,E (2326) Chess.com INT 2021}) 6... O-O {[%emt 0:00:48]} 7. Ngf3 {[%emt 0:02:28]} Nbd7 {[%emt 0:00:31]} 8. e3 {[%emt 0:04:16] White has an edge.} Be7 {[%emt 0:03:05]} 9. cxd5 {[%emt 0:09:09]} exd5 {[%emt 0:00:57]} 10. Bd3 {[%emt 0:05:05]} c6 {[%emt 0:00:20]} 11. Bb1 {[%emt 0:04:56]} Ne4 {[%emt 0:06:27]} 12. Bxe7 {[%emt 0:01:19]} Qxe7 {[%emt 0:00:02]} 13. Nxe4 {[%emt 0:00:52]} dxe4 {[%emt 0:00:03]} 14. Nd2 {[%emt 0:00:13]} Nf6 {[%emt 0:02:56]} 15. Rc5 {[%emt 0:08:42]} Bg4 {[%emt 0:04:32]} ({Better is} 15... Nd7 $11 16. Rc1 Nf6) 16. Qb3 {[%emt 0:13:14]} (16. Qc2 $14) 16... Be6 $11 {[%emt 0:02:57]} 17. Re5 {[%emt 0:03:01]} ({White should try} 17. Qa3 $11) 17... Ng4 $1 $15 {[%emt 0:05:53]} ({Don't play} 17... Bxb3 18. Rxe7 Be6 19. Rxb7 $16 (19. Nxe4 Nxe4 20. Bxe4 Rab8 $11) (19. Bxe4 Rfb8 $11)) 18. Rxe6 {[%emt 0:08:19]} Qxe6 {[%emt 0:00:07]} 19. Qxe6 {[%emt 0:00:08]} fxe6 {[%emt 0:00:05]} 20. Nxe4 {[%emt 0:00:10]} Rae8 {[%emt 0:08:07]} 21. h3 {[%emt 0:04:28]} Nf6 {[%emt 0:00:05]} 22. Nd6 {[%emt 0:00:23][%csl LRb7,LRe8]} Rd8 {[%emt 0:00:55]} (22... Re7 $17) 23. Nc4 {[%emt 0:01:44]} (23. Nxb7 $11 {should be considered.} Rb8 24. Na5) 23... Nd7 {[%emt 0:08:36]} 24. b4 {[%emt 0:01:07]} e5 {[%emt 0:01:32]} (24... b6 $15) 25. Nxe5 {[%emt 0:02:22]} (25. dxe5 $5 {[%cal Re5e6]} b5 26. e6 $11) 25... Nxe5 {[%emt 0:00:06]} 26. dxe5 $11 {[%emt 0:00:05][%mdl 4096] Endgame KRR-KRB} Rd5 {[%emt 0:00:35]} 27. f4 {[%emt 0:01:20]} Rfd8 {[%emt 0:00:09][%mdl 1024] Threatens to win with ...Rd1+. Black has compensation.} 28. Bc2 {[%emt 0:00:38] Prevents Rd1+. Now White is beyond hope.} (28. Ke2 $1 $15) 28... Rd2 $19 {[%emt 0:00:35]} 29. Bb3+ {[%emt 0:00:12]} Kf8 {[%emt 0:00:02]} 30. O-O {[%emt 0:00:30]} (30. Rf1 {is the only way for White.}) 30... Re2 {[%emt 0:03:18]} 31. Rf3 {[%emt 0:01:37] [#]} Rdd2 $1 {[%emt 0:00:09]} 32. Rg3 {[%emt 0:00:38]} Rd3 {[%emt 0:00:49]} 33. Rg6 {[%emt 0:03:09]} Rexe3 {[%emt 0:01:36]} 34. Kh2 $2 {[%emt 0:05:21]} (34. Kf2 {was called for.}) 34... Rd4 {[%emt 0:01:54][%csl LRb4,LRf4]} 35. f5 {[%emt 0:00:49]} Rxe5 {[%emt 0:01:48]} 36. f6 {[%emt 0:00:06]} Rd7 {[%emt 0:03:43]} 37. Be6 {[%emt 0:02:21]} Rc7 {[%emt 0:00:21]} ({Not} 37... Rxe6 38. fxg7+ Kg8 39. Rxe6 $11) 38. fxg7+ {[%emt 0:00:13]} Rxg7 {[%emt 0:00:06]} 39. Rxh6 {[%emt 0:00:04]} Re2 {[%emt 0:00:24]} 40. Bg4 {[%emt 0:00:25]} Rxa2 {[%emt 0:00:13]} 41. Rd6 {[%emt 0:00:39]} Ra4 {[%emt 0:03:13]} 42. Rd4 {[%emt 0:00:09]} a5 {[%emt 0:00:20]} 43. Rd8+ {[%emt 0:00:14]} Ke7 {[%emt 0:00:02]} 44. Ra8 {[%emt 0:01:03]} Rxb4 {[%emt 0:00:06] ...a4 is the strong threat.} 45. Rxa5 {[%emt 0:00:04]} Kd6 {[%emt 0:00:53]} 46. Bf3 {[%emt 0:00:08]} Rf4 {[%emt 0:01:03]} 47. Rh5 {[%emt 0:00:26]} Rgf7 {[%emt 0:04:28]} 48. Kg3 {[%emt 0:00:39]} b5 {[%emt 0:00:13][%cal Bb7b5,Bb5b4,Bb4b3][%mdl 32]} 49. h4 {[%emt 0:00:18]} b4 {[%emt 0:00:12]} 50. Ra5 {[%emt 0:00:56]} b3 {[%emt 0:00:49] ( -> ...b2)} 51. Ra6 {[%emt 0:00:31] [#]} Rxf3+ $1 {[%emt 0:02:05][%mdl 512] Black mates.} 52. gxf3 {[%emt 0:00:06] KR-KR} Rb7 {[%emt 0:00:09]} 53. Ra1 {[%emt 0:00:06]} c5 {[%emt 0:00:07][%cal Bc6c5,Bc5c4][%mdl 32]} 54. Kf4 {[%emt 0:00:27]} c4 {[%emt 0:01:06]} 55. Ke3 {[%emt 0:00:10]} Kc5 {[%emt 0:00:24]} 56. Kd2 {[%emt 0:00:20]} Kb4 {[%emt 0:00:38]} 57. Ra8 {[%emt 0:00:25]} Rd7+ {[%emt 0:00:19]} 58. Kc1 {[%emt 0:00:14]} Kc3 {[%emt 0:30:52] Weighted Error Value: White=0.45/Black=0.08 (flawless)} 0-1

[Event "Silver Lake Festival 2022"]
[Site "Veliko Gradiste"]
[Date "2022.06.22"]
[Round "5.4"]
[White "Ramoutar, Alan-Safar"]
[Black "Anuj Shrivatri"]
[Result "0-1"]
[ECO "B31"]
[WhiteElo "2477"]
[BlackElo "2356"]
[Annotator "TA"]
[PlyCount "72"]
[EventDate "2022.06.16"]
[EventType "swiss"]
[EventCountry "SRB"]
[SourceTitle "playchess.com"]
[Source "ChessBase"]
[SourceQuality "1"]
[TimeControl "5400+30"]

{[%evp 9,72,11,10,16,27,18,12,10,21,21,22,17,15,8,13,1,22,14,17,10,38,0,0,0,0,0,0,-27,-16,-35,-45,-200,-197,-193,-189,-198,-187,-181,-183,-272,-258,-420,-413,-725,-713,-704,-679,-932,-913,-837,-1199,-1224,-1226,-1126,-1108,-1031,-1005,-845,-679,-638,-640,-607,-425,-520,-426]} 1. e4 {[%emt 0:00:07]} c5 {[%emt 0:00:07]} 2. Nc3 {[%emt 0:00:48]} Nc6 {[%emt 0:00:07]} 3. Nf3 {[%emt 0:01:42]} g6 {[%emt 0:00:15]} 4. Bb5 {[%emt 0:00:43]} Bg7 {[%emt 0:00:35]} 5. O-O {[%emt 0:01:05]} e5 {[%emt 0:09:55]} 6. d3 {[%emt 0:03:37] B31: Sicilian: 2...Nc6 3 Bb5 g6.} d6 {[%emt 0:03:31]} 7. a3 {[%emt 0:02:53]} Nge7 {[%emt 0:01:58]} 8. Bc4 {[%emt 0:04:35] The position is equal.} h6 {[%emt 0:04:21] Prevents Ng5.} 9. b4 {[%emt 0:02:00]} O-O {[%emt 0:02:25]} 10. bxc5 {[%emt 0:01:23]} dxc5 {[%emt 0:00:10]} 11. Nd5 {[%emt 0:09:12]} Be6 {[%emt 0:17:02]} 12. Ne3 {[%emt 0:05:41]} Qd7 {[%emt 0:08:42]} 13. a4 {[%emt 0:03:52]} b6 {[%emt 0:04:36]} 14. Bb2 {[%emt 0:01:46] [#]} Nd4 $146 {[%emt 0:08:41]} ({Predecessor:} 14... f5 15. Re1 f4 16. Bxe6+ Qxe6 17. Nc4 g5 18. h3 Rf7 19. Bc3 Nc8 20. Qb1 Nd6 21. Nxd6 Qxd6 {1-0 (37) Kovacevic,A (2515)-Djukic,N (2536) Portoroz 2016}) 15. Nd2 {[%emt 0:02:24]} Kh7 {[%emt 0:02:59]} 16. Bxe6 {[%emt 0:00:44]} Nxe6 {[%emt 0:02:19]} 17. Ndc4 {[%emt 0:00:27]} Nd4 {[%emt 0:00:48]} 18. Kh1 {[%emt 0:06:49]} f5 {[%emt 0:02:05]} 19. exf5 {[%emt 0:01:39]} gxf5 {[%emt 0:00:07][%cal Bg6f5,Bf5f4,Bf4f3][%mdl 32]} 20. f4 $2 {[%emt 0:00:37] This move loses the game for White.} (20. Rg1 $15) 20... exf4 $19 {[%emt 0:01:35]} 21. Rxf4 {[%emt 0:00:12]} Ng6 $1 {[%emt 0:00:30]} 22. Rf2 {[%emt 0:01:35]} f4 {[%emt 0:02:03]} 23. Nf1 {[%emt 0:03:25]} f3 $1 {[%emt 0:01:51] Hoping for ...fxg2+.} 24. g3 {[%emt 0:05:09] [#]} (24. Nfd2 $142) 24... Rae8 $1 {[%emt 0:01:30][%cal Ba8e8,Be8e2,Be2f2][%mdl 32] And now ...Re2 would win.} 25. Nce3 $2 {[%emt 0:02:11]} (25. Nfe3 {might work better.}) 25... Nf5 {[%emt 0:01:14]} 26. Bxg7 {[%emt 0:02:43]} (26. Nxf5 $142 Bxb2 27. Ra2) 26... Nxe3 {[%emt 0:00:20] Black is clearly winning.} ({And not} 26... Nxg7 27. c3 $17 (27. Rxf3 $2 Qb7 $19)) ({Not} 26... Qxg7 27. Nxf5 Rxf5 28. d4 $17) 27. Nxe3 {[%emt 0:00:49]} Qxg7 {[%emt 0:00:14]} 28. Nc4 {[%emt 0:08:58] [#]} Re2 $1 {[%emt 0:02:12]} 29. Rf1 {[%emt 0:01:29]} Ne5 {[%emt 0:03:09][%cal Bg6e5,Be5g4,Bg4f2][%mdl 32] ( -> ...Ng4)} 30. Nd2 {[%emt 0:03:34]} Ng4 {[%emt 0:01:06]} 31. Nxf3 {[%emt 0:03:49]} Nf2+ {[%emt 0:00:25]} 32. Rxf2 {[%emt 0:00:15]} Rxf2 {[%emt 0:00:05]} 33. Nh4 {[%emt 0:01:11] [#]} Qxa1 $3 {[%emt 0:02:06][%mdl 512]} 34. Qxa1 {[%emt 0:00:12]} Rf1+ {[%emt 0:00:03]} 35. Qxf1 {[%emt 0:00:10]} Rxf1+ {[%emt 0:00:05]} 36. Kg2 {[%emt 0:00:08]} Ra1 {[%emt 0:00:30] Weighted Error Value: White=0.44/Black=0.06 (flawless)} 0-1